bitfinex/quotes_BTCUSD_20241211
["timestamp","ask_amount","ask_price","bid_price","bid_amount"]
[1733881661174,0.02917796,96400.0,96399.0,0.05007822]
[1733881661722,0.02917796,96400.0,96399.0,0.04907822]
[1733881661926,0.15529572,96400.0,96399.0,0.003]
[1733881662129,0.15529572,96400.0,96399.0,0.004]
[1733881662130,0.28913772,96400.0,96399.0,0.004]
[1733881662653,0.28913772,96400.0,96399.0,0.003]
[1733881662858,0.28913772,96400.0,96399.0,0.004]
[1733881663054,0.28913772,96400.0,96399.0,0.001]
[1733881663485,0.12611776,96393.0,96391.0,0.24098115]
[1733881663688,0.14911776,96393.0,96392.0,0.04484752]
[1733881665158,0.023,96393.0,96392.0,0.04484752]
[1733881665360,0.14911776,96399.0,96398.0,0.207473]
[1733881665732,0.0001716,96400.0,96398.0,0.207473]
[1733881667045,0.001,96399.0,96398.0,0.207473]
[1733881667250,0.001,96399.0,96398.0,0.27765117]
[1733881667708,0.024,96399.0,96398.0,0.27765117]
[1733881668359,0.0011716,96400.0,96398.0,0.27765117]
[1733881668475,0.02899416,96399.0,96398.0,0.27765117]
[1733881668676,0.02899416,96399.0,96398.0,0.28065117]
[1733881669555,0.00599416,96399.0,96398.0,0.38597641]
[1733881669753,0.0011716,96400.0,96398.0,0.38597641]
[1733881669987,0.0011716,96400.0,96399.0,0.19792423]
[1733881670270,0.0001716,96400.0,96399.0,0.19792423]
[1733881671654,0.0001716,96400.0,96399.0,0.20092423]
[1733881671915,0.0001716,96400.0,96399.0,0.19792423]
[1733881672085,0.0001716,96400.0,96399.0,0.19892423]
[1733881672488,0.0001716,96400.0,96399.0,0.19792423]
[1733881672894,0.0001716,96400.0,96399.0,0.001]
[1733881673301,0.14928936,96400.0,96399.0,0.001]
[1733881673650,0.14928936,96400.0,96392.0,0.04484752]
[1733881673651,0.14911776,96399.0,96397.0,0.207473]
[1733881673967,0.02900009,96398.0,96397.0,0.207473]
[1733881674258,0.00600009,96398.0,96397.0,0.25681123]
[1733881674869,0.0001716,96400.0,96397.0,0.46428523]
[1733881675479,0.0001716,96400.0,96397.0,0.46628523]
[1733881676227,0.0001716,96400.0,96397.0,0.46728523]
[1733881676620,0.0001716,96400.0,96397.0,0.46528523]
[1733881676867,0.0001716,96400.0,96399.0,0.207471]
[1733881677449,0.0061716,96400.0,96399.0,0.207471]
[1733881678078,0.0061716,96400.0,96398.0,0.07062644]
[1733881678280,0.023,96399.0,96398.0,0.07062644]
[1733881678696,0.02900408,96399.0,96398.0,0.07062644]
[1733881679126,0.02900408,96399.0,96392.0,0.207484]
[1733881679127,0.02900408,96399.0,96396.0,0.207476]
[1733881679304,0.02900408,96399.0,96398.0,0.207473]
[1733881679497,0.02900408,96399.0,96397.0,0.002]
[1733881679902,0.02900408,96399.0,96392.0,0.207484]
[1733881680130,0.02900408,96399.0,96394.0,0.207481]
[1733881680363,0.02900408,96399.0,96398.0,0.003]
[1733881680974,0.02900408,96399.0,96398.0,0.001]
[1733881681186,0.02900408,96399.0,96396.0,0.207476]
[1733881681314,0.02900408,96399.0,96397.0,0.002]
[1733881681511,0.02900408,96399.0,96398.0,0.04745616]
[1733881682852,0.02900408,96399.0,96391.0,0.03349515]
[1733881682853,0.023,96392.0,96391.0,0.03349515]
[1733881683027,0.28295976,96392.0,96391.0,0.023]
[1733881683283,0.156842,96391.0,96379.0,0.00016531]
[1733881683488,0.28295976,96391.0,96384.0,0.041536]
[1733881683805,0.28902631,96391.0,96384.0,0.041536]
[1733881684000,0.15518431,96391.0,96387.0,0.207495]
[1733881684217,0.28902631,96391.0,96390.0,0.02499726]
[1733881684633,0.28902631,96391.0,96390.0,8.56e-05]
[1733881684634,0.29402631,96391.0,96390.0,8.56e-05]
[1733881685030,0.28902631,96391.0,96390.0,8.56e-05]
[1733881685281,0.39435155,96391.0,96390.0,8.56e-05]
[1733881685708,0.28902631,96391.0,96390.0,8.56e-05]
[1733881686094,0.29102631,96391.0,96390.0,8.56e-05]
[1733881686642,0.29202631,96391.0,96390.0,8.56e-05]
[1733881686815,0.28902631,96391.0,96390.0,8.56e-05]
[1733881687017,0.39635155,96391.0,96390.0,8.56e-05]
[1733881687631,0.39435155,96391.0,96390.0,8.56e-05]
[1733881687830,0.39935155,96391.0,96390.0,8.56e-05]
[1733881688163,0.39435155,96391.0,96390.0,8.56e-05]
[1733881688364,0.40235155,96391.0,96390.0,0.0010856]
[1733881689551,0.40635155,96391.0,96390.0,0.0010856]
[1733881689765,0.39835155,96391.0,96390.0,8.56e-05]
[1733881690010,0.39435155,96391.0,96390.0,8.56e-05]
[1733881690217,0.40135155,96391.0,96390.0,0.0010856]
[1733881690368,0.40435155,96391.0,96390.0,0.0010856]
[1733881690548,0.39735155,96391.0,96390.0,8.56e-05]
[1733881690775,0.40435155,96391.0,96390.0,0.0010856]
[1733881690990,0.40135155,96391.0,96390.0,0.0010856]
[1733881691188,0.39435155,96391.0,96390.0,8.56e-05]
[1733881691389,0.39735155,96391.0,96390.0,8.56e-05]
[1733881691598,0.40335155,96391.0,96390.0,0.0010856]
[1733881692411,0.14118431,96391.0,96390.0,0.0010856]
[1733881692614,0.14590855,96391.0,96390.0,0.2085756]
[1733881692813,0.14590855,96391.0,96390.0,0.22943316]
[1733881692814,0.27202631,96391.0,96390.0,0.22943316]
[1733881693015,0.27502631,96391.0,96390.0,0.22943316]
[1733881693454,0.01206655,96391.0,96390.0,0.22943316]
[1733881693618,0.00606655,96391.0,96390.0,0.22843316]
[1733881693804,0.00906655,96391.0,96390.0,0.23870251]
[1733881694007,0.009,96391.0,96390.0,0.23870251]
[1733881694201,0.003,96391.0,96390.0,0.23870251]
[1733881694622,0.01198687,96391.0,96390.0,0.23870251]
[1733881694825,0.02898687,96391.0,96390.0,0.23870251]
[1733881695360,0.02898687,96391.0,96390.0,0.24070251]
[1733881696350,0.02898687,96391.0,96390.0,0.24270251]
[1733881696689,0.02898687,96391.0,96390.0,0.23870251]
[1733881697123,0.16282887,96391.0,96390.0,0.01435495]
[1733881697325,0.16282887,96391.0,96390.0,0.01135495]
[1733881697523,0.16282887,96391.0,96390.0,0.01035495]
[1733881697524,0.02898687,96391.0,96390.0,0.01035495]
[1733881697753,0.02898687,96391.0,96390.0,0.01435495]
[1733881697927,0.16282887,96391.0,96390.0,0.03754014]
[1733881698162,0.16282887,96391.0,96390.0,0.01135495]
[1733881698383,0.28894663,96391.0,96390.0,0.0010856]
[1733881698589,0.28894663,96391.0,96390.0,0.0030856]
[1733881699206,0.39427187,96391.0,96390.0,0.0020856]
[1733881699437,0.44117187,96391.0,96390.0,0.0020856]
[1733881699630,0.44217187,96391.0,96390.0,0.0020856]
[1733881700018,0.44217187,96391.0,96390.0,8.56e-05]
[1733881700221,0.44117187,96391.0,96390.0,8.56e-05]
[1733881700431,0.44117187,96391.0,96390.0,0.0010856]
[1733881700585,0.44517187,96391.0,96390.0,8.56e-05]
[1733881701114,0.45017187,96391.0,96390.0,0.0010856]
[1733881701289,0.60017187,96391.0,96390.0,0.0010856]
[1733881702488,0.60417187,96391.0,96390.0,0.0010856]
[1733881703059,0.32032987,96391.0,96390.0,0.0010856]
[1733881703258,0.40727187,96391.0,96390.0,0.0010856]
[1733881703409,0.30194663,96391.0,96390.0,0.0010856]
[1733881704002,0.14510463,96391.0,96390.0,0.0010856]
[1733881704245,0.27894663,96391.0,96390.0,0.02194416]
[1733881704448,0.01898687,96391.0,96390.0,0.02194416]
[1733881704595,0.01898687,96391.0,96390.0,0.22943416]
[1733881704795,0.00998687,96391.0,96390.0,0.22843416]
[1733881704990,0.01798687,96391.0,96390.0,0.22943416]
[1733881705864,0.04098687,96391.0,96390.0,0.22943416]
[1733881706021,0.03698687,96391.0,96390.0,0.22943416]
[1733881706223,0.04098687,96391.0,96390.0,0.22943416]
[1733881706419,0.03298687,96391.0,96390.0,0.22843416]
[1733881706662,0.03298687,96391.0,96390.0,0.02094416]
[1733881706862,0.02998687,96391.0,96390.0,0.02094416]
[1733881707087,0.02998687,96391.0,96390.0,0.22843416]
[1733881707284,0.02898687,96391.0,96390.0,0.22943416]
[1733881707441,0.02898687,96391.0,96390.0,0.23243416]
[1733881707641,0.02898687,96391.0,96390.0,0.02494416]
[1733881709107,0.02898687,96391.0,96390.0,0.02394416]
[1733881709460,0.28894663,96391.0,96390.0,0.0030856]
[1733881710237,0.28894663,96391.0,96390.0,8.56e-05]
[1733881711248,0.29194663,96391.0,96390.0,8.56e-05]
[1733881711452,0.29694663,96391.0,96390.0,8.56e-05]
[1733881711889,0.29194663,96391.0,96390.0,8.56e-05]
[1733881712067,0.29794663,96391.0,96390.0,8.56e-05]
[1733881712503,0.29494663,96391.0,96390.0,8.56e-05]
[1733881712917,0.29794663,96391.0,96390.0,8.56e-05]
[1733881713482,0.29194663,96391.0,96390.0,8.56e-05]
[1733881713690,0.28894663,96391.0,96390.0,8.56e-05]
[1733881713891,0.29394663,96391.0,96390.0,8.56e-05]
[1733881714268,0.29194663,96391.0,96390.0,8.56e-05]
[1733881714722,0.29694663,96391.0,96390.0,8.56e-05]
[1733881715326,0.29194663,96391.0,96390.0,8.56e-05]
[1733881715805,0.28894663,96391.0,96390.0,8.56e-05]
[1733881716063,0.29094663,96391.0,96390.0,8.56e-05]
[1733881716807,0.00798687,96391.0,96390.0,8.56e-05]
[1733881716998,0.01198687,96391.0,96390.0,0.04159356]
[1733881717215,0.002,96391.0,96390.0,0.04159356]
[1733881717390,0.12628936,96400.0,96397.0,0.414949]
[1733881717609,0.0001716,96400.0,96397.0,0.414949]
[1733881717792,0.00596125,96399.0,96397.0,0.414949]
[1733881717992,0.0001716,96400.0,96399.0,0.207471]
[1733881718443,0.00616866,96400.0,96399.0,0.207471]
[1733881718641,0.0001716,96400.0,96399.0,0.207471]
[1733881718871,0.00616866,96400.0,96399.0,0.207471]
[1733881719090,0.0001716,96400.0,96399.0,0.207471]
[1733881719315,0.00616866,96400.0,96399.0,0.25311499]
[1733881719506,0.0001716,96400.0,96399.0,0.25311499]
[1733881719715,0.0231716,96400.0,96399.0,0.25311499]
[1733881719914,0.02916866,96400.0,96399.0,0.25311499]
[1733881720553,0.02916866,96400.0,96399.0,0.25511499]
[1733881720956,0.02916866,96400.0,96399.0,0.36044023]
[1733881720957,0.00616866,96400.0,96399.0,0.36044023]
[1733881721630,0.00616866,96400.0,96399.0,0.36544023]
[1733881722008,0.00616866,96400.0,96399.0,0.35844023]
[1733881722208,0.00616866,96400.0,96399.0,0.36444023]
[1733881722409,0.00616866,96400.0,96399.0,0.49234023]
[1733881722410,0.0001716,96400.0,96399.0,0.49234023]
[1733881722612,0.0001716,96400.0,96399.0,0.58491798]
[1733881722850,0.0001716,96400.0,96399.0,0.8162285]
[1733881723054,0.0001716,96400.0,96399.0,1.04567288]
[1733881723211,0.0001716,96400.0,96399.0,0.8172285]
[1733881723769,0.0001716,96400.0,96399.0,0.8142285]
[1733881724040,0.0001716,96400.0,96399.0,1.0493184]
[1733881724197,0.133842,96432.0,96419.0,0.207427]
[1733881724400,0.133842,96432.0,96419.0,0.38905224]
[1733881724603,0.133842,96431.0,96419.0,0.38905224]
[1733881724829,0.133842,96433.0,96419.0,0.38905224]
[1733881725031,0.133842,96431.0,96419.0,0.38905224]
[1733881725241,0.133842,96435.0,96419.0,0.38905224]
[1733881725433,0.00072234,96420.0,96419.0,0.38905224]
[1733881725649,0.00072234,96420.0,96419.0,0.39405224]
[1733881726795,0.00072234,96420.0,96419.0,0.39705224]
[1733881726952,0.00072234,96420.0,96419.0,0.45429125]
[1733881728342,0.00072234,96420.0,96419.0,0.50389125]
[1733881728567,0.00072234,96420.0,96419.0,0.51424747]
[1733881729012,0.00072234,96420.0,96419.0,0.46464747]
[1733881730102,0.00072234,96420.0,96419.0,0.46164747]
[1733881730506,0.00072234,96420.0,96419.0,0.46364747]
[1733881732366,0.00072234,96420.0,96419.0,0.46164747]
[1733881732815,0.00072234,96420.0,96419.0,0.46464747]
[1733881735868,0.00072234,96420.0,96419.0,0.38834747]
[1733881737303,0.00072234,96420.0,96419.0,0.28002223]
[1733881737506,0.00072234,96420.0,96419.0,0.27602223]
[1733881737705,0.00072234,96420.0,96419.0,0.07259523]
[1733881737922,0.00072234,96420.0,96419.0,0.01535622]
[1733881738278,0.2898471,96420.0,96419.0,0.01135622]
[1733881738504,0.2898471,96420.0,96419.0,0.003]
[1733881738932,0.2898471,96420.0,96419.0,0.001]
[1733881739047,0.2898471,96420.0,96390.0,8.56e-05]
[1733881739048,0.133842,96400.0,96390.0,8.56e-05]
[1733881739246,0.023,96399.0,96391.0,0.02075786]
[1733881739446,0.02913405,96399.0,96396.0,0.207477]
[1733881739694,0.02913405,96399.0,96396.0,0.414954]
[1733881739926,0.18294758,96420.0,96397.0,0.10532524]
[1733881739927,0.023,96412.0,96397.0,0.10532524]
[1733881740120,0.133842,96414.0,96413.0,0.20744]
[1733881740279,0.28295976,96414.0,96413.0,0.20744]
[1733881741136,0.156842,96414.0,96413.0,0.20744]
[1733881741445,0.156842,96414.0,96413.0,0.269674]
[1733881741737,0.28295976,96414.0,96413.0,0.270674]
[1733881742378,0.156842,96414.0,96413.0,0.270674]
[1733881742937,0.16298091,96414.0,96413.0,0.270674]
[1733881743138,0.16298091,96414.0,96413.0,0.271674]
[1733881743437,0.16298091,96414.0,96413.0,0.28231111]
[1733881743671,0.28909867,96414.0,96413.0,0.28231111]
[1733881745816,0.28909867,96414.0,96413.0,0.28131111]
[1733881746018,0.28909867,96414.0,96413.0,0.07287111]
[1733881746239,0.28909867,96414.0,96400.0,8.57e-05]
[1733881746240,0.156842,96401.0,96400.0,8.57e-05]
[1733881746445,0.156842,96401.0,96400.0,0.2075537]
[1733881746656,0.1629781,96401.0,96400.0,0.2075537]
[1733881747042,0.12611776,96411.0,96400.0,0.2075537]
[1733881747043,0.023,96409.0,96408.0,0.207451]
[1733881747169,0.023,96410.0,96409.0,0.0414906]
[1733881747369,0.133842,96414.0,96410.0,0.414894]
[1733881747370,0.023,96413.0,96410.0,0.414894]
[1733881748719,0.024,96413.0,96410.0,0.414894]
[1733881748879,0.023,96413.0,96410.0,0.414894]
[1733881749078,0.023,96413.0,96412.0,0.207443]
[1733881749625,0.00072234,96420.0,96411.0,0.04563846]
[1733881749626,0.28295976,96412.0,96411.0,0.04563846]
[1733881749826,0.28295976,96411.0,96410.0,0.003]
[1733881750209,0.28295976,96411.0,96410.0,0.002]
[1733881750612,0.35825976,96411.0,96410.0,0.002]
[1733881751267,0.35825976,96411.0,96400.0,8.57e-05]
[1733881751268,0.230447,96410.0,96400.0,8.57e-05]
[1733881751452,0.230447,96410.0,96400.0,0.02084247]
[1733881751828,0.14911776,96401.0,96400.0,0.02084247]
[1733881752843,0.28295976,96401.0,96400.0,0.02084247]
[1733881753160,0.28395976,96401.0,96400.0,0.02084247]
[1733881753557,0.28295976,96401.0,96400.0,0.02084247]
[1733881754076,0.28395976,96401.0,96400.0,0.02084247]
[1733881754429,0.28595976,96401.0,96400.0,0.02084247]
[1733881754742,0.28395976,96401.0,96400.0,0.02084247]
[1733881754942,0.28595976,96401.0,96400.0,0.02084247]
[1733881755358,0.023,96409.0,96401.0,0.207466]
[1733881755565,0.023,96409.0,96402.0,0.02388745]
[1733881755566,0.133842,96409.0,96402.0,0.02388745]
[1733881755768,0.133842,96409.0,96407.0,0.207453]
[1733881755769,0.12611776,96408.0,96407.0,0.207453]
[1733881755976,0.25995976,96409.0,96407.0,0.207453]
[1733881756232,0.133842,96409.0,96407.0,0.207453]
[1733881756661,0.001,96409.0,96407.0,0.207453]
[1733881756798,0.001,96409.0,96408.0,0.06462645]
[1733881757005,0.001,96409.0,96408.0,0.16995169]
[1733881757204,0.133842,96434.0,96419.0,0.207427]
[1733881757439,0.133842,96434.0,96419.0,0.31275224]
[1733881758287,0.13451196,96436.0,96419.0,0.31275224]
[1733881758504,0.133842,96434.0,96419.0,0.39525224]
[1733881758722,0.133842,96434.0,96419.0,0.47626526]
[1733881759171,0.133842,96434.0,96419.0,0.48526526]
[1733881759348,0.133842,96434.0,96419.0,0.47626526]
[1733881759773,0.133842,96434.0,96419.0,0.48526526]
[1733881759991,0.133842,96434.0,96419.0,0.49026526]
[1733881760878,0.133842,96434.0,96419.0,0.5006241]
[1733881761132,0.133842,96434.0,96419.0,0.4916241]
[1733881761544,0.133842,96434.0,96419.0,0.5006241]
[1733881761950,0.0083942,96436.0,96419.0,0.5006241]
[1733881761951,0.023,96425.0,96419.0,0.30379886]
[1733881762161,0.023,96423.0,96419.0,0.30379886]
[1733881762362,0.0766,96432.0,96419.0,0.10537186]
[1733881762363,0.2898531,96420.0,96419.0,0.10537186]
[1733881762528,0.2836821,96420.0,96419.0,0.01535884]
[1733881762731,0.28985479,96420.0,96419.0,0.01535884]
[1733881763116,0.28985479,96420.0,96419.0,0.03263812]
[1733881763321,0.28985479,96420.0,96419.0,0.04163812]
[1733881763545,0.2836821,96420.0,96419.0,0.04663812]
[1733881763971,0.2836821,96420.0,96419.0,0.04163812]
[1733881764172,0.28985479,96420.0,96419.0,0.04163812]
[1733881764771,0.28985479,96420.0,96419.0,0.03263812]
[1733881764934,0.29385479,96420.0,96419.0,0.03363812]
[1733881765154,0.2876821,96420.0,96419.0,0.03363812]
[1733881765351,0.00689503,96420.0,96419.0,0.21876336]
[1733881765817,0.00072234,96420.0,96419.0,0.21876336]
[1733881767174,0.00072234,96420.0,96419.0,0.22276336]
[1733881767824,0.00072234,96420.0,96419.0,0.23176336]
[1733881768317,0.00072234,96420.0,96419.0,0.22276336]
[1733881769270,0.00072234,96420.0,96419.0,0.22576336]
[1733881769449,0.00072234,96420.0,96419.0,0.21876336]
[1733881769647,0.00072234,96420.0,96419.0,0.22276336]
[1733881769940,0.00072234,96420.0,96419.0,0.32429173]
[1733881770150,0.00072234,96420.0,96419.0,0.32029173]
[1733881770545,0.00072234,96420.0,96419.0,0.32429173]
[1733881770750,3.4e-07,96420.0,96419.0,0.23176336]
[1733881771002,0.0083942,96436.0,96435.0,0.207393]
[1733881771172,0.0083942,96436.0,96435.0,0.33345754]
[1733881771373,0.0085594,96436.0,96435.0,0.33345754]
[1733881771978,0.0085594,96436.0,96435.0,0.42608464]
[1733881772184,0.0085594,96436.0,96435.0,0.33345754]
[1733881772752,0.0085594,96436.0,96435.0,0.34245754]
[1733881772878,0.0085594,96436.0,96435.0,0.33445754]
[1733881774076,0.0085594,96436.0,96435.0,0.33345754]
[1733881774570,0.0085594,96436.0,96435.0,0.35094595]
[1733881774703,0.0085594,96436.0,96435.0,0.35394595]
[1733881775289,0.0085594,96436.0,96435.0,0.34694595]
[1733881775666,0.0085594,96436.0,96435.0,0.24662071]
[1733881775872,0.0085594,96436.0,96435.0,0.24162071]
[1733881776074,0.01483683,96436.0,96435.0,0.23862071]
[1733881776272,0.01483683,96436.0,96435.0,0.23962071]
[1733881777162,0.01483683,96436.0,96435.0,0.34794595]
[1733881777606,0.0085594,96436.0,96435.0,0.34394595]
[1733881777840,0.01481911,96436.0,96435.0,0.34394595]
[1733881778427,0.01481911,96436.0,96435.0,0.34794595]
[1733881778648,0.01481911,96436.0,96435.0,0.34594595]
[1733881779061,0.01481911,96436.0,96435.0,0.35094595]
[1733881779299,0.0085594,96436.0,96435.0,0.34594595]
[1733881779668,0.0085594,96436.0,96435.0,0.34394595]
[1733881779931,0.01482196,96436.0,96435.0,0.34394595]
[1733881780120,0.01482196,96436.0,96435.0,0.34694595]
[1733881780464,0.0001714,96440.0,96437.0,0.207388]
[1733881780670,0.0001714,96440.0,96439.0,0.207384]
[1733881780870,0.0001714,96440.0,96439.0,0.38870924]
[1733881782136,0.0001714,96440.0,96439.0,0.39370924]
[1733881784366,0.0001714,96440.0,96439.0,0.39670924]
[1733881784707,0.0001714,96440.0,96439.0,0.49144487]
[1733881786431,0.0001714,96450.0,96449.0,0.207363]
[1733881786633,0.00022642,96450.0,96449.0,0.31268824]
[1733881787052,0.00022642,96450.0,96449.0,0.207363]
[1733881787213,0.00022642,96450.0,96449.0,0.2695734]
[1733881787997,0.0054946,96450.0,96449.0,0.2695734]
[1733881788198,0.0054946,96450.0,96449.0,0.28218823]
[1733881788978,0.0054946,96450.0,96449.0,0.28118823]
[1733881789338,0.0064946,96450.0,96449.0,0.28118823]
[1733881789540,0.28845436,96450.0,96449.0,0.01161483]
[1733881790148,0.28845436,96450.0,96449.0,0.01061483]
[1733881790343,0.023,96449.0,96443.0,0.207375]
[1733881790554,0.14911776,96448.0,96447.0,0.207366]
[1733881790982,0.15437666,96448.0,96447.0,0.207366]
[1733881791185,0.28821866,96448.0,96447.0,0.04148266]
[1733881791527,0.133842,96444.0,96443.0,0.01042055]
[1733881791731,0.0282589,96448.0,96440.0,8.56e-05]
[1733881791732,0.28295976,96441.0,96440.0,8.56e-05]
[1733881791938,0.49033976,96441.0,96440.0,8.56e-05]
[1733881792140,0.28821149,96441.0,96440.0,8.56e-05]
[1733881792874,0.28821149,96441.0,96440.0,0.02083386]
[1733881793098,0.28921149,96441.0,96440.0,8.56e-05]
[1733881793301,0.26621149,96441.0,96440.0,8.56e-05]
[1733881794314,0.28921149,96441.0,96440.0,8.56e-05]
[1733881794497,0.47603673,96441.0,96440.0,8.56e-05]
[1733881794703,0.62603673,96441.0,96440.0,8.56e-05]
[1733881794907,0.62503673,96441.0,96440.0,8.56e-05]
[1733881795118,0.62303673,96441.0,96440.0,8.56e-05]
[1733881795333,0.62403673,96441.0,96440.0,8.56e-05]
[1733881795535,0.82503673,96441.0,96440.0,8.56e-05]
[1733881795746,0.82503673,96441.0,96420.0,8.57e-05]
[1733881795747,0.53938276,96421.0,96420.0,8.57e-05]
[1733881795954,0.61888276,96421.0,96420.0,8.57e-05]
[1733881796156,0.62404788,96421.0,96420.0,8.57e-05]
[1733881796368,0.41662488,96421.0,96420.0,8.57e-05]
[1733881796978,0.41662488,96421.0,96420.0,0.0002509]
[1733881798607,0.41962488,96421.0,96420.0,0.0002509]
[1733881798957,0.42062488,96421.0,96420.0,0.0002509]
[1733881799366,0.41962488,96421.0,96420.0,0.0002509]
[1733881799604,0.42062488,96421.0,96420.0,0.0002509]
[1733881800455,0.41762488,96421.0,96420.0,0.0002509]
[1733881800857,0.42062488,96421.0,96420.0,0.0002509]
[1733881801560,0.41962488,96421.0,96420.0,0.0002509]
[1733881801786,0.52195012,96421.0,96420.0,0.0002509]
[1733881801991,0.52595012,96421.0,96420.0,0.0002509]
[1733881802175,0.82495012,96421.0,96420.0,0.0002509]
[1733881802708,0.93105341,96421.0,96420.0,0.0002509]
[1733881802906,0.82595012,96421.0,96420.0,0.0002509]
[1733881803469,0.82195012,96421.0,96420.0,0.0002509]
[1733881803932,0.39010812,96421.0,96420.0,0.0002509]
[1733881804267,0.22050712,96421.0,96420.0,0.0002509]
[1733881804466,0.26512488,96421.0,96420.0,0.0002509]
[1733881804838,0.13128288,96421.0,96420.0,0.0012509]
[1733881805041,0.13128288,96421.0,96420.0,0.0022509]
[1733881805042,0.27612488,96421.0,96420.0,0.0022509]
[1733881805267,0.27612488,96421.0,96420.0,0.02321989]
[1733881805451,0.26512488,96421.0,96420.0,0.02121989]
[1733881805659,0.26800703,96421.0,96420.0,0.02121989]
[1733881806035,0.26500703,96421.0,96420.0,0.02121989]
[1733881806393,0.27100703,96421.0,96420.0,0.02121989]
[1733881806879,0.26600703,96421.0,96420.0,0.02121989]
[1733881807431,0.26500703,96421.0,96420.0,0.02121989]
[1733881808072,0.26500703,96421.0,96420.0,0.0002509]
[1733881808384,0.28800703,96421.0,96420.0,0.0002509]
[1733881809670,0.27000703,96421.0,96420.0,0.0002509]
[1733881810049,0.26500703,96421.0,96420.0,0.0002509]
[1733881810186,0.00504727,96421.0,96420.0,0.0002509]
[1733881810389,0.003,96421.0,96420.0,0.04282159]
[1733881810727,0.00806728,96421.0,96420.0,0.14814683]
[1733881810927,0.006,96421.0,96420.0,0.14814683]
[1733881811309,0.003,96421.0,96420.0,0.14814683]
[1733881811763,0.133842,96431.0,96430.0,0.207404]
[1733881811959,0.133842,96431.0,96430.0,0.2488852]
[1733881812163,0.00507602,96431.0,96430.0,0.2488852]
[1733881812366,0.28405,96456.0,96430.0,0.2488852]
[1733881812367,0.25995976,96442.0,96439.0,0.207384]
[1733881812526,0.25995976,96440.0,96439.0,0.207384]
[1733881812892,0.133842,96440.0,96439.0,0.207384]
[1733881813091,0.25995976,96440.0,96439.0,0.2488612]
[1733881814660,0.133842,96436.0,96430.0,0.05209143]
[1733881814860,0.133842,96431.0,96430.0,0.05209143]
[1733881815087,0.12611776,96432.0,96420.0,0.04282159]
[1733881815088,0.25995976,96421.0,96420.0,0.04282159]
[1733881815290,0.25995976,96421.0,96420.0,0.0002509]
[1733881816364,0.28295976,96421.0,96420.0,0.0052509]
[1733881816758,0.28295976,96421.0,96420.0,0.0002509]
[1733881817091,0.28495976,96421.0,96420.0,0.0002509]
[1733881817297,0.28595976,96421.0,96420.0,0.04282846]
[1733881817499,0.28395976,96421.0,96420.0,0.04282846]
[1733881817705,0.28814377,96421.0,96420.0,0.04282846]
[1733881818245,0.28914377,96421.0,96420.0,0.04282846]
[1733881818793,0.28814377,96421.0,96420.0,0.0002509]
[1733881819082,0.39646901,96421.0,96420.0,0.0002509]
[1733881819512,0.39346901,96421.0,96420.0,0.0002509]
[1733881820120,0.69346901,96421.0,96420.0,0.0002509]
[1733881820294,0.69446901,96421.0,96420.0,0.0002509]
[1733881820511,0.77506901,96421.0,96420.0,0.0002509]
[1733881821066,0.78006901,96421.0,96420.0,0.0002509]
[1733881821388,0.78606901,96421.0,96420.0,0.0002509]
[1733881822012,0.8435721,96421.0,96420.0,9e-07]
[1733881822235,0.71255976,96401.0,96400.0,8.57e-05]
[1733881822386,0.817885,96401.0,96400.0,8.57e-05]
[1733881822803,0.5229727,96401.0,96400.0,8.57e-05]
[1733881823034,0.4749727,96401.0,96400.0,8.57e-05]
[1733881823191,0.469885,96401.0,96400.0,8.57e-05]
[1733881823391,0.13111776,96401.0,96400.0,0.0010857]
[1733881823640,0.13111776,96401.0,96400.0,0.02194207]
[1733881823809,0.25995976,96401.0,96400.0,0.22841007]
[1733881824015,0.25995976,96401.0,96400.0,0.03117823]
[1733881824236,0.370285,96401.0,96400.0,0.0010857]
[1733881824887,0.394285,96401.0,96400.0,0.0010857]
[1733881825353,0.393285,96401.0,96400.0,0.0010857]
[1733881825550,0.388285,96401.0,96400.0,8.57e-05]
[1733881825941,0.393285,96401.0,96400.0,8.57e-05]
[1733881826235,0.388285,96401.0,96400.0,8.57e-05]
[1733881826660,0.393285,96401.0,96400.0,8.57e-05]
[1733881827424,0.28295976,96401.0,96400.0,8.57e-05]
[1733881827598,0.00016502,96421.0,96400.0,8.57e-05]
[1733881827599,0.12611776,96402.0,96400.0,8.57e-05]
[1733881827770,0.133842,96402.0,96401.0,0.414932]
[1733881827935,0.25995976,96402.0,96401.0,0.25679777]
[1733881828960,0.00016502,96421.0,96401.0,0.25679777]
[1733881828961,0.133842,96404.0,96401.0,0.04933177]
[1733881829164,0.023,96406.0,96402.0,0.207464]
[1733881829362,0.133842,96403.0,96402.0,0.414928]
[1733881829577,0.133842,96403.0,96402.0,0.48315403]
[1733881830284,0.133842,96403.0,96402.0,0.06822603]
[1733881830468,0.133842,96402.0,96401.0,0.05033177]
[1733881830879,0.28295976,96402.0,96401.0,0.001]
[1733881831108,0.28295976,96401.0,96400.0,8.57e-05]
[1733881832402,0.595751,96401.0,96400.0,8.57e-05]
[1733881832603,0.28295976,96401.0,96400.0,8.57e-05]
[1733881832775,0.156842,96401.0,96400.0,0.02084167]
[1733881832989,0.28295976,96401.0,96400.0,0.02084167]
[1733881833162,0.28295976,96401.0,96400.0,8.57e-05]
[1733881833502,0.28295976,96401.0,96400.0,0.0010857]
[1733881833929,0.28295976,96401.0,96400.0,8.57e-05]
[1733881834460,0.28295976,96401.0,96400.0,0.0010857]
[1733881834865,0.28281176,96401.0,96400.0,8.57e-05]
[1733881835415,0.28581176,96401.0,96400.0,8.57e-05]
[1733881835634,0.28381176,96401.0,96400.0,8.57e-05]
[1733881836024,0.28681176,96401.0,96400.0,8.57e-05]
[1733881836225,0.28581176,96401.0,96400.0,8.57e-05]
[1733881837048,0.28581176,96401.0,96400.0,0.02084197]
[1733881837599,0.28681176,96401.0,96400.0,8.57e-05]
[1733881837786,0.49427776,96401.0,96400.0,8.57e-05]
[1733881837986,0.28581176,96401.0,96400.0,8.57e-05]
[1733881838415,0.28281176,96401.0,96400.0,8.57e-05]
[1733881838767,0.28581176,96401.0,96400.0,8.57e-05]
[1733881839088,0.28281176,96401.0,96400.0,8.57e-05]
[1733881839292,0.28381176,96401.0,96400.0,8.57e-05]
[1733881839515,0.137842,96401.0,96400.0,0.02084217]
[1733881839746,0.004,96401.0,96400.0,0.02084217]
[1733881840331,0.001,96401.0,96400.0,0.02084217]
[1733881840680,0.001,96401.0,96400.0,0.13660983]
[1733881841647,0.133842,96410.0,96400.0,0.13660983]
[1733881841849,0.133842,96410.0,96401.0,0.15259412]
[1733881842385,0.133842,96402.0,96401.0,0.04726888]
[1733881842612,0.133842,96401.0,96400.0,0.01052812]
[1733881842814,0.133842,96401.0,96400.0,0.01252812]
[1733881842988,0.133842,96401.0,96400.0,0.01352812]
[1733881843916,0.133842,96401.0,96400.0,0.01252812]
[1733881844337,0.133842,96401.0,96400.0,0.01052812]
[1733881844661,0.133842,96401.0,96400.0,0.06094583]
[1733881845217,0.133842,96401.0,96400.0,8.57e-05]